bitfinex-derivatives/quotes_BTCF0:USTF0_20251210
["timestamp","ask_amount","ask_price","bid_price","bid_amount"]
[1765383015943,0.06706617,92102.0,92101.0,0.00021715]
[1765383016448,0.06706617,92102.0,92101.0,0.00121715]
[1765383016749,0.06606617,92102.0,92101.0,0.00121715]
[1765383017344,0.06806617,92102.0,92101.0,0.00121715]
[1765383017543,0.06806617,92102.0,92101.0,0.03407715]
[1765383017748,0.06806617,92102.0,92101.0,0.00121715]
[1765383017949,0.06906617,92102.0,92101.0,0.00021715]
[1765383018149,0.07006617,92102.0,92101.0,0.00021715]
[1765383018549,0.06506617,92102.0,92101.0,0.03307715]
[1765383018747,0.06806617,92102.0,92101.0,0.06475715]
[1765383018945,0.06906617,92102.0,92101.0,0.06475715]
[1765383019447,0.06906617,92102.0,92101.0,0.00021715]
[1765383020052,0.57490617,92102.0,92101.0,0.00021715]
[1765383020354,0.57490617,92102.0,92101.0,0.06475715]
[1765383021248,0.57390617,92102.0,92101.0,0.06475715]
[1765383021450,0.57490617,92102.0,92101.0,0.06475715]
[1765383021754,0.57090617,92102.0,92101.0,0.06475715]
[1765383021944,0.57490617,92102.0,92101.0,0.06475715]
[1765383022145,0.57390617,92102.0,92101.0,0.06475715]
[1765383022455,0.57390617,92102.0,92101.0,0.03307715]
[1765383023051,0.57390617,92102.0,92101.0,0.06475715]
[1765383023052,0.06906617,92102.0,92101.0,0.06475715]
[1765383023365,0.03685617,92102.0,92101.0,0.06475715]
[1765383023544,0.03585617,92102.0,92101.0,0.06475715]
[1765383024051,0.03285617,92102.0,92101.0,0.06475715]
[1765383024254,0.03685617,92102.0,92101.0,0.06475715]
[1765383024648,0.03285617,92102.0,92101.0,0.06475715]
[1765383024853,0.03485617,92102.0,92101.0,0.06475715]
[1765383025245,0.03285617,92102.0,92101.0,0.06475715]
[1765383025445,0.03385617,92102.0,92101.0,0.06475715]
[1765383026258,0.03385617,92102.0,92101.0,0.06575715]
[1765383026947,0.00207617,92102.0,92101.0,0.06575715]
[1765383029747,7.617e-05,92102.0,92101.0,0.06575715]
[1765383029958,0.00207617,92102.0,92101.0,0.06575715]
[1765383030360,0.00207617,92102.0,92101.0,0.07661495]
[1765383030659,0.06305617,92102.0,92101.0,0.07661495]
[1765383030867,0.06105617,92102.0,92101.0,0.07661495]
[1765383031057,0.06305617,92102.0,92101.0,0.07661495]
[1765383032359,0.06305617,92102.0,92101.0,0.11543689]
[1765383033557,0.06105617,92102.0,92101.0,0.11543689]
[1765383033761,0.07391387,92102.0,92101.0,0.11543689]
[1765383033962,0.07391387,92102.0,92101.0,0.07661495]
[1765383034164,0.06305617,92102.0,92101.0,0.11543689]
[1765383034367,0.06305617,92102.0,92101.0,0.07661495]
[1765383034368,0.06105617,92102.0,92101.0,0.07661495]
[1765383034550,0.06305617,92102.0,92101.0,0.07661495]
[1765383034755,0.03317617,92102.0,92101.0,0.07661495]
[1765383034952,7.617e-05,92102.0,92101.0,0.07561495]
[1765383035156,0.0463028,92111.0,92110.0,0.0719668]
[1765383035355,0.0774028,92111.0,92110.0,0.4327668]
[1765383035665,0.0611428,92111.0,92110.0,0.4327668]
[1765383036060,0.0312628,92111.0,92110.0,0.4327668]
[1765383036367,0.00021826,92111.0,92110.0,0.4327668]
[1765383036565,0.05844659,92159.0,92158.0,0.02975]
[1765383036754,0.08042,92169.0,92168.0,0.06111]
[1765383036964,0.08042,92169.0,92168.0,0.09024507]
[1765383037159,0.08042,92169.0,92168.0,0.0902423]
[1765383037466,0.08042,92169.0,92168.0,0.09038139]
[1765383037870,0.08542,92169.0,92168.0,0.09038139]
[1765383038167,0.08542,92169.0,92168.0,0.11947185]
[1765383038362,0.06598,92169.0,92168.0,0.09038139]
[1765383038563,0.005,92169.0,92168.0,0.45118139]
[1765383038769,0.007,92169.0,92168.0,0.45118139]
[1765383039154,0.0381,92169.0,92168.0,0.45118139]
[1765383039759,0.007,92169.0,92168.0,0.45118139]
[1765383039971,0.04611,92176.0,92175.0,0.06111]
[1765383040270,0.04611,92176.0,92175.0,0.10123049]
[1765383040470,0.10709,92176.0,92175.0,0.10123049]
[1765383040670,0.06098,92176.0,92175.0,0.10123049]
[1765383041169,0.06998,92176.0,92175.0,0.10223049]
[1765383041356,0.06998,92176.0,92175.0,0.0729591]
[1765383042172,0.06998,92176.0,92175.0,0.0118491]
[1765383042558,0.06998,92176.0,92175.0,0.001]
[1765383043370,0.06998,92176.0,92175.0,0.06211]
[1765383043563,0.06998,92176.0,92175.0,0.03075]
[1765383044767,0.06998,92176.0,92175.0,0.06211]
[1765383046071,0.06998,92176.0,92175.0,0.03075]
[1765383046974,0.06998,92176.0,92175.0,0.06211]
[1765383047381,0.06998,92176.0,92175.0,0.03075]
[1765383047874,0.06998,92176.0,92175.0,0.001]
[1765383048973,0.06998,92176.0,92175.0,0.06211]
[1765383049366,0.0196028,92178.0,92175.0,0.06211]
[1765383049367,0.0001628,92178.0,92177.0,0.06111]
[1765383050765,0.0031628,92178.0,92177.0,0.06111]
[1765383050966,0.0061628,92178.0,92177.0,0.06111]
[1765383053369,0.0031628,92178.0,92177.0,0.06311]
[1765383053678,0.0001628,92178.0,92177.0,0.06311]
[1765383053880,0.0001628,92178.0,92177.0,0.06811]
[1765383060381,0.04611,92183.0,92182.0,0.1320083]
[1765383060586,0.01646201,92183.0,92182.0,0.97267095]
[1765383060901,0.00108472,92190.0,92189.0,0.1320074]
[1765383061081,0.12326,92210.0,92209.0,0.1320051]
[1765383061276,0.1341053,92207.0,92206.0,0.3608]
[1765383061477,0.12326,92198.0,92197.0,0.00016271]
[1765383061675,0.12326,92198.0,92197.0,0.03085394]
[1765383062482,0.12326,92198.0,92197.0,0.03185394]
[1765383062877,0.12326,92198.0,92197.0,0.15301394]
[1765383063081,0.12326,92198.0,92197.0,0.51381394]
[1765383063386,0.12326,92207.0,92206.0,0.1320054]
[1765383063579,0.12326,92207.0,92206.0,0.52349663]
[1765383064181,0.12326,92207.0,92206.0,0.09000123]
[1765383064380,0.12326,92207.0,92206.0,0.03069123]
[1765383065087,0.12326,92207.0,92206.0,0.09000123]
[1765383065286,0.12426,92207.0,92206.0,0.15185123]
[1765383065488,0.003,92207.0,92206.0,0.15185123]
[1765383065691,0.002,92207.0,92206.0,0.15185123]
[1765383065890,0.002,92207.0,92206.0,0.191698]
[1765383066086,0.002,92207.0,92206.0,0.15285123]
[1765383066392,0.01757443,92215.0,92214.0,0.1592645]
[1765383066581,0.01757443,92215.0,92214.0,0.55075573]
[1765383067088,0.01712973,92215.0,92214.0,0.60891138]
[1765383067288,0.01712973,92215.0,92214.0,0.55075573]
[1765383068298,0.01812973,92215.0,92214.0,0.55075573]
[1765383068881,0.00063973,92215.0,92214.0,0.55175573]
[1765383069092,0.00263973,92215.0,92214.0,0.55175573]
[1765383069293,2.44e-06,92216.0,92215.0,0.11938]
[1765383069490,2.44e-06,92216.0,92215.0,0.22750058]
[1765383069686,0.12207244,92216.0,92215.0,0.22750058]
[1765383069894,0.12207244,92216.0,92215.0,0.15007123]
[1765383070194,0.06097244,92216.0,92215.0,0.15007123]
[1765383070491,0.06097244,92216.0,92215.0,0.03069123]
[1765383070492,0.12207244,92216.0,92215.0,0.03069123]
[1765383070696,0.12207244,92216.0,92215.0,0.15007123]
[1765383071086,2.44e-06,92216.0,92215.0,0.03069123]
[1765383071990,0.12207244,92216.0,92215.0,0.15107123]
[1765383072189,0.13291674,92216.0,92214.0,0.32481686]
[1765383072389,0.08996,92210.0,92209.0,0.02902938]
[1765383072696,0.08996,92210.0,92198.0,0.02902938]
[1765383072697,0.1008063,92199.0,92198.0,0.02902938]
[1765383072887,0.1008063,92199.0,92197.0,0.02919209]
[1765383073082,0.08996,92198.0,92197.0,0.02919209]
[1765383073396,0.08996,92198.0,92197.0,0.00016271]
[1765383078986,0.08996,92198.0,92186.0,0.03870177]
[1765383078987,0.12207,92187.0,92185.0,0.02902938]
[1765383079192,0.12207,92187.0,92177.0,0.02902938]
[1765383079193,0.12207,92178.0,92177.0,0.02902938]
[1765383079501,0.1329192,92174.0,92173.0,0.16893107]
[1765383079892,0.1329192,92174.0,92173.0,0.04955107]
[1765383080093,0.12207,92174.0,92173.0,0.0711893]
[1765383080400,0.12207,92174.0,92173.0,0.1302293]
[1765383081103,0.12207,92174.0,92173.0,0.0108493]
[1765383081306,0.12207,92174.0,92173.0,0.10026342]
[1765383081503,0.12207,92174.0,92173.0,0.10326342]
[1765383081703,0.12207,92174.0,92173.0,0.10826342]
[1765383082388,0.12207,92174.0,92173.0,0.16730342]
[1765383083199,0.12207,92174.0,92173.0,0.12738]
[1765383083416,0.12207,92174.0,92173.0,0.008]
[1765383083600,0.12207,92174.0,92173.0,0.0188493]
[1765383084298,0.12207,92174.0,92173.0,0.04838015]
[1765383084501,0.12207,92174.0,92173.0,0.03753085]
[1765383084895,0.12207,92174.0,92173.0,0.008]
[1765383085814,0.12207,92174.0,92173.0,0.12738]
[1765383086001,0.0108491,92176.0,92173.0,0.12738]
[1765383086002,0.4326187,92179.0,92178.0,0.15708]
[1765383086305,0.06097,92179.0,92178.0,0.15708]
[1765383086516,0.12207,92179.0,92178.0,0.15708]
[1765383087614,0.12207,92179.0,92178.0,0.16108]
[1765383088112,0.12207,92179.0,92178.0,0.16308]
[1765383089313,0.00016271,92183.0,92178.0,0.16308]
[1765383089314,0.06882271,92183.0,92182.0,0.1512183]
[1765383089614,0.00016271,92183.0,92182.0,0.18070672]
[1765383090508,0.00016271,92183.0,92182.0,0.1512183]
[1765383090811,0.06882271,92183.0,92182.0,0.1542183]
[1765383091010,0.14142271,92183.0,92182.0,0.1542183]
[1765383091308,0.14142271,92183.0,92182.0,0.1562183]
[1765383092211,0.00016271,92183.0,92182.0,0.1562183]
[1765383094223,0.00016271,92183.0,92182.0,0.2462183]
[1765383094515,0.00016271,92183.0,92182.0,0.18529242]
[1765383094705,0.35932,92198.0,92197.0,0.1512165]
[1765383094905,0.42798,92198.0,92197.0,0.5120165]
[1765383095101,0.50058,92198.0,92197.0,0.5120165]
[1765383095309,0.50058,92198.0,92197.0,0.50117]
[1765383096012,0.35932,92198.0,92197.0,0.50117]
[1765383096923,0.15226801,92207.0,92206.0,0.14037]
[1765383097216,0.15226801,92207.0,92206.0,0.3608]
[1765383098821,0.15226801,92207.0,92206.0,0.43019]
[1765383099016,0.15226801,92207.0,92206.0,0.50117]
[1765383099318,0.06882271,92207.0,92206.0,0.50117]
[1765383099715,0.00016271,92207.0,92206.0,0.50117]
[1765383100114,0.04235008,92220.0,92219.0,0.1512139]
[1765383100312,0.04235008,92220.0,92219.0,0.50117]
[1765383100313,0.18361008,92220.0,92219.0,0.50117]
[1765383101404,0.18361008,92220.0,92219.0,0.06939]
[1765383101620,0.14126,92215.0,92214.0,0.18255]
[1765383101921,0.04435008,92220.0,92210.0,0.0011627]
[1765383101922,0.14126,92211.0,92210.0,0.00016271]
[1765383102122,0.14126,92211.0,92210.0,0.14053271]
[1765383102123,0.1521049,92211.0,92210.0,0.14053271]
[1765383102417,0.0108449,92211.0,92210.0,0.14053271]
[1765383102927,0.0795049,92211.0,92210.0,0.14053271]
[1765383103619,0.1511849,92211.0,92210.0,0.14053271]
[1765383104117,0.1511849,92211.0,92210.0,0.00116271]
[1765383104625,0.1511849,92211.0,92210.0,0.14153271]
[1765383104814,0.1511849,92211.0,92210.0,0.00116271]
[1765383105119,0.1511849,92211.0,92210.0,0.07055271]
[1765383105509,0.1511849,92211.0,92210.0,0.00116271]
[1765383106011,0.5119849,92211.0,92210.0,0.00116271]
[1765383106422,0.5119849,92211.0,92210.0,0.00016271]
[1765383106715,0.0108445,92214.0,92213.0,0.0108444]
[1765383106909,0.04235008,92220.0,92216.0,0.1512141]
[1765383107112,0.04235008,92220.0,92219.0,0.5120139]
[1765383108115,0.04335008,92220.0,92219.0,0.5120139]
[1765383109117,0.01100551,92229.0,92228.0,0.1512129]
[1765383109326,0.00016271,92229.0,92228.0,0.1512129]
[1765383110019,0.00016271,92229.0,92228.0,0.5120129]
[1765383110220,0.01192573,92240.0,92239.0,0.14037]
[1765383111320,0.00108413,92240.0,92239.0,0.14037]
[1765383111528,0.00508413,92240.0,92239.0,0.14037]
[1765383111918,0.004,92240.0,92239.0,0.14037]
[1765383112122,0.01100321,92249.0,92248.0,0.14037]
[1765383112314,0.00016271,92249.0,92248.0,0.14037]
[1765383112510,0.13653,92248.0,92247.0,0.0108406]
[1765383112710,0.1473712,92242.0,92241.0,0.04218]
[1765383112910,0.1473712,92242.0,92241.0,0.11157]
[1765383113117,0.1473712,92242.0,92241.0,0.18255]
[1765383113825,0.1483712,92242.0,92241.0,0.18255]
[1765383114310,0.1493712,92242.0,92241.0,0.1933913]
[1765383114511,0.002,92242.0,92241.0,0.1933913]
[1765383114817,0.002,92242.0,92241.0,0.9149913]
[1765383115018,0.00016271,92249.0,92248.0,0.14037]
[1765383115324,0.00016271,92249.0,92248.0,0.1512105]
[1765383115715,0.06882271,92249.0,92248.0,0.1512105]
[1765383116121,0.00016271,92249.0,92248.0,0.1512105]
[1765383116620,0.00216271,92249.0,92248.0,0.1512105]
[1765383120420,0.00216271,92249.0,92248.0,0.14037]
[1765383120616,0.13540271,92249.0,92248.0,0.14037]
[1765383122921,0.00216271,92249.0,92248.0,0.14037]
[1765383123425,0.86720384,92265.0,92250.0,0.03908]
[1765383123426,0.0108396,92257.0,92250.0,0.03908]
[1765383123623,0.1440796,92257.0,92256.0,0.1353]
[1765383124213,0.13324,92257.0,92256.0,0.1353]
[1765383124422,0.13324,92257.0,92256.0,0.1123]
[1765383124624,0.13324,92257.0,92255.0,0.3608]
[1765383124625,0.00108384,92265.0,92264.0,0.1353]
[1765383124926,0.3608,92283.0,92282.0,0.1461365]
[1765383125237,0.00108355,92290.0,92289.0,0.1353]
[1765383125530,0.0108328,92314.0,92313.0,0.1353]
[1765383126015,0.13432325,92315.0,92314.0,0.1353]
[1765383126221,0.06711325,92315.0,92314.0,0.1353]
[1765383126413,0.00108325,92315.0,92314.0,0.1353]
[1765383126619,0.13432325,92315.0,92314.0,0.1353]
[1765383127123,0.13324,92311.0,92310.0,0.03908]
[1765383127323,0.0108328,92314.0,92304.0,0.13546252]
[1765383127528,0.13324,92305.0,92304.0,0.13546252]
[1765383127923,0.06603,92305.0,92304.0,0.13546252]
[1765383128130,0.144073,92312.0,92311.0,0.1353]
[1765383128446,0.13324,92312.0,92311.0,0.1353]
[1765383128627,0.13324,92312.0,92304.0,0.00016252]
[1765383128628,0.12706,92305.0,92304.0,0.00016252]
[1765383129022,0.12706,92305.0,92304.0,0.00216252]
[1765383129637,0.06296,92287.0,92286.0,0.17437]
[1765383130023,0.12706,92287.0,92286.0,0.03908]
[1765383130223,0.12706,92282.0,92281.0,0.0108366]
[1765383130426,0.12706,92282.0,92280.0,0.03908]
[1765383130427,0.12706,92281.0,92280.0,0.0108368]
[1765383130645,0.12706,92281.0,92280.0,0.13529]
[1765383130836,0.12706,92280.0,92279.0,0.03797]
[1765383131027,0.12706,92280.0,92271.0,0.00016252]
[1765383131028,0.12706,92272.0,92271.0,0.13545252]
[1765383131229,0.00016222,92290.0,92271.0,0.00016252]
[1765383131427,0.27789368,92290.0,92271.0,0.00016252]
[1765383131623,0.06296,92287.0,92286.0,0.004]
[1765383131825,0.12706,92287.0,92286.0,0.01]
[1765383132339,0.06296,92287.0,92286.0,0.13529]
[1765383132535,0.12706,92287.0,92286.0,0.13529]
[1765383132839,0.12706,92287.0,92280.0,0.36179999]
[1765383132840,0.00016222,92290.0,92289.0,0.1461257]
[1765383133635,0.12722222,92290.0,92289.0,0.42863]
[1765383134028,0.12706,92287.0,92286.0,0.01]
[1765383134427,0.12706,92287.0,92286.0,0.14529]
[1765383134626,0.12706,92287.0,92286.0,0.14129]
[1765383135331,0.00016222,92290.0,92289.0,0.13529]
[1765383135533,0.00016222,92290.0,92289.0,0.14029]
[1765383136140,0.00016222,92290.0,92289.0,0.49609]
[1765383136325,0.0108339,92304.0,92289.0,0.49609]
[1765383136326,0.0108339,92304.0,92303.0,0.13529]
[1765383136523,0.1378939,92304.0,92303.0,0.13529]
[1765383137032,0.12706,92298.0,92297.0,0.3608]
[1765383137240,0.12706,92298.0,92297.0,0.39151413]
[1765383137428,0.12706,92298.0,92297.0,0.52680413]
[1765383138439,0.22008,92305.0,92304.0,0.13529]
[1765383138840,0.0108337,92306.0,92305.0,0.13529]
[1765383139041,0.1378937,92306.0,92305.0,0.06783]
[1765383139232,0.12706,92298.0,92297.0,0.005]
[1765383140539,0.12706,92298.0,92297.0,5e-08]
[1765383141241,0.1378957,92289.0,92288.0,0.00016252]
[1765383142648,0.1378957,92289.0,92288.0,0.00916252]
[1765383144239,0.1378957,92289.0,92288.0,0.04060122]
[1765383145342,0.1378957,92289.0,92288.0,0.00916252]
[1765383146949,0.1378957,92289.0,92288.0,0.04049732]
[1765383147651,0.1378957,92289.0,92288.0,0.10832732]
[1765383147950,0.1378957,92289.0,92288.0,0.17578732]
[1765383148244,0.1378957,92289.0,92288.0,0.10832732]
[1765383148443,0.1378957,92289.0,92288.0,0.04049732]
[1765383148844,0.1378957,92289.0,92288.0,0.00916252]
[1765383152252,0.12917,92274.0,92273.0,0.02889451]
[1765383152553,0.0108372,92276.0,92255.0,0.07742935]
[1765383152554,0.1400096,92256.0,92255.0,0.17099177]
[1765383152851,0.1400096,92256.0,92248.0,0.03870177]
[1765383152852,0.1400103,92250.0,92248.0,0.03870177]
[1765383153053,0.1400103,92250.0,92244.0,0.03870177]
[1765383153351,0.1400103,92250.0,92240.0,0.08056841]
[1765383153546,0.1400103,92250.0,92240.0,0.04186664]
[1765383154146,0.1400103,92250.0,92249.0,0.00208189]
[1765383154448,0.1400103,92250.0,92240.0,0.04186664]
[1765383154449,0.1513703,92250.0,92240.0,0.00124665]
[1765383154647,0.1400113,92241.0,92240.0,0.00124665]
[1765383155753,0.14009319,92241.0,92240.0,0.00124665]
[1765383155952,0.14009319,92241.0,92240.0,0.00324665]
[1765383157243,0.14009319,92241.0,92240.0,0.00524665]
[1765383157548,0.14009319,92241.0,92240.0,0.17715665]
[1765383157852,0.64517319,92241.0,92240.0,0.17715665]
[1765383158147,0.64517319,92241.0,92240.0,0.11040665]
[1765383158543,0.64517319,92241.0,92240.0,0.17715665]
[1765383159642,8.189e-05,92241.0,92240.0,0.18799815]
[1765383159842,0.3608,92271.0,92258.0,0.1431293]
[1765383160056,0.0108383,92268.0,92258.0,0.1431293]
[1765383160251,0.03685,92280.0,92258.0,0.1431293]
[1765383160252,0.0108374,92275.0,92271.0,0.0108378]
[1765383160447,0.1400074,92275.0,92274.0,0.13229]
[1765383161156,0.33108,92284.0,92282.0,0.13229]
[1765383161157,0.1400064,92283.0,92282.0,0.13229]
[1765383162053,0.06256,92283.0,92282.0,0.13229]
[1765383162349,0.12917,92283.0,92282.0,0.13229]
[1765383162658,0.0108363,92284.0,92283.0,0.13229]
[1765383163049,0.0733963,92284.0,92283.0,0.13229]
[1765383164453,0.1410063,92284.0,92283.0,0.13229]
[1765383166854,0.0743963,92284.0,92283.0,0.49309]
[1765383167547,0.1410063,92284.0,92283.0,0.49309]
[1765383168056,0.1410063,92284.0,92283.0,0.5039264]
[1765383168057,0.001,92284.0,92283.0,0.5039264]
[1765383169057,0.3608,92294.0,92283.0,0.5039264]
[1765383169058,0.3608,92294.0,92293.0,0.1431252]
[1765383169263,0.0108336,92307.0,92306.0,0.13229]
[1765383169664,0.0733936,92307.0,92306.0,0.13229]
[1765383169956,0.1400036,92307.0,92306.0,0.13229]
[1765383170663,0.1400043,92301.0,92300.0,0.13229]
[1765383171548,0.1400043,92301.0,92300.0,0.06554]
[1765383171755,0.5008043,92301.0,92300.0,0.06554]
[1765383172349,0.5008043,92301.0,92300.0,0.13229]
[1765383172561,0.5008043,92301.0,92290.0,0.04061999]
[1765383172562,0.0108355,92291.0,92290.0,0.17191]
[1765383172753,0.0108355,92291.0,92290.0,0.20209518]
[1765383173656,0.1400055,92291.0,92290.0,0.16247518]
[1765383174062,0.0733955,92291.0,92290.0,0.20209518]
[1765383174357,0.0733955,92291.0,92290.0,0.17191]
[1765383174862,0.0733955,92291.0,92290.0,0.17291]
[1765383175461,0.1400055,92291.0,92290.0,0.17291]
[1765383175765,0.0733955,92291.0,92290.0,0.17291]
[1765383176365,0.0108351,92294.0,92291.0,0.0108354]
[1765383176662,0.0733951,92294.0,92293.0,0.13229]
[1765383177063,0.0108351,92294.0,92293.0,0.13229]
[1765383177867,0.0733951,92294.0,92293.0,0.13229]
[1765383178166,0.3608,92301.0,92290.0,0.04061999]
[1765383178364,0.0108343,92301.0,92300.0,0.17791]
[1765383178670,0.0769339,92304.0,92303.0,0.13522]
[1765383178973,0.1475139,92304.0,92303.0,0.49602]
[1765383180265,0.0769339,92304.0,92303.0,0.49602]
[1765383180463,0.1907439,92304.0,92303.0,0.3608]
[1765383180767,0.1485139,92304.0,92303.0,0.49602]
[1765383181152,0.1917439,92304.0,92303.0,0.49602]
[1765383181357,0.0108339,92304.0,92303.0,0.49602]
[1765383181557,0.1475139,92304.0,92303.0,0.49602]
[1765383182062,0.1917439,92304.0,92303.0,0.3608]
[1765383182363,0.1917439,92304.0,92291.0,0.49602]
[1765383182364,0.1475153,92292.0,92291.0,0.49602]
[1765383183560,0.1485153,92292.0,92291.0,0.49602]
[1765383184163,0.1475153,92292.0,92291.0,0.49602]
[1765383184367,0.1485153,92292.0,92291.0,0.49602]
[1765383185274,0.001,92292.0,92291.0,0.49602]
[1765383185465,0.001,92292.0,92291.0,0.52653403]
[1765383185856,0.04323,92313.0,92291.0,0.52653403]
[1765383185857,0.22037753,92310.0,92291.0,0.52653403]
[1765383186062,0.35705753,92310.0,92309.0,0.13522]
[1765383186262,0.13668,92310.0,92309.0,0.13522]
[1765383186758,0.00108325,92315.0,92314.0,0.13522]
[1765383187577,0.13776325,92315.0,92314.0,0.13522]
[1765383188376,0.00108325,92315.0,92314.0,0.13522]
[1765383188775,0.06918325,92315.0,92314.0,0.13522]
[1765383189378,0.06718325,92315.0,92314.0,0.13522]
[1765383189579,0.13627325,92315.0,92314.0,0.13522]
[1765383190066,0.06718325,92315.0,92314.0,0.13522]
[1765383190263,0.06718325,92315.0,92314.0,0.16587879]
[1765383191268,0.13627325,92315.0,92314.0,0.16687879]
[1765383191572,0.06718325,92315.0,92314.0,0.16687879]
[1765383191869,0.00108325,92315.0,92314.0,0.16587879]
[1765383192076,0.00108325,92315.0,92314.0,0.16687879]
[1765383192874,0.00108325,92315.0,92314.0,0.16787879]
[1765383193274,0.13770325,92315.0,92314.0,0.16687879]
[1765383193783,0.00108325,92315.0,92314.0,0.16687879]
[1765383194172,0.00108325,92315.0,92314.0,0.16587879]
[1765383194373,0.00108325,92315.0,92314.0,0.16687879]
[1765383194781,0.13770325,92315.0,92314.0,0.16687879]
[1765383194973,0.13770325,92315.0,92314.0,0.16587879]
[1765383195173,0.00108325,92315.0,92314.0,0.16687879]
[1765383195777,0.00108325,92315.0,92314.0,0.16587879]
[1765383195993,0.00108325,92315.0,92314.0,0.16687879]
[1765383196477,0.00108325,92315.0,92314.0,0.16787879]
[1765383196684,0.13770325,92315.0,92314.0,0.16787879]
[1765383197077,0.13770325,92315.0,92314.0,0.16687879]
[1765383198171,0.00108325,92315.0,92314.0,0.16687879]
[1765383198480,1.35e-06,92315.0,92314.0,0.16687879]
[1765383198780,1.35e-06,92315.0,92314.0,0.24430814]
[1765383198984,1.35e-06,92315.0,92314.0,0.96590814]
[1765383199277,0.13662,92337.0,92336.0,0.13336]
[1765383199584,0.13662,92337.0,92336.0,0.52481879]
[1765383200684,0.07836,92338.0,92337.0,0.13336]
[1765383200989,0.00108296,92340.0,92339.0,0.13336]
[1765383201278,0.00108296,92340.0,92339.0,0.16401879]
[1765383201279,0.13770296,92340.0,92339.0,0.16401879]
[1765383201583,0.17824296,92340.0,92339.0,0.03065879]
[1765383201786,0.1474511,92328.0,92327.0,0.49432252]
[1765383202084,0.1474511,92328.0,92327.0,0.52494145]
[1765383203084,0.5082511,92328.0,92327.0,0.00016252]
[1765383203287,0.5082511,92328.0,92327.0,0.00116252]
[1765383203772,0.5092511,92328.0,92327.0,0.00016252]
[1765383203973,0.5102511,92328.0,92327.0,0.00016252]
[1765383205175,0.1474519,92321.0,92320.0,0.00099999]
[1765383205371,0.1474529,92313.0,92312.0,0.13336]
[1765383205572,0.1474529,92313.0,92312.0,0.16399001]
[1765383205991,0.1874629,92313.0,92312.0,0.03063001]
[1765383206174,0.1874629,92313.0,92300.0,0.13435999]
[1765383206175,0.1474543,92301.0,92300.0,0.13435999]
[1765383206378,0.1474543,92301.0,92300.0,0.16466255]
[1765383206884,0.13662,92301.0,92300.0,0.16466255]
[1765383207286,0.1474535,92308.0,92307.0,0.13336]
[1765383207582,0.1474535,92308.0,92307.0,0.52446256]
[1765383208286,0.1474535,92308.0,92307.0,0.39110256]
[1765383208788,0.1474535,92308.0,92300.0,0.006]
[1765383208789,0.1399443,92301.0,92300.0,0.006]
[1765383209083,0.1399443,92301.0,92300.0,0.003]
[1765383209275,0.1399453,92292.0,92280.0,0.03966697]
[1765383209473,0.1399453,92292.0,92291.0,0.03036835]
[1765383210286,0.1399453,92292.0,92291.0,0.00016252]
[1765383210785,0.1399453,92292.0,92291.0,0.12706252]
[1765383211004,0.1399453,92292.0,92291.0,0.13106252]
[1765383211185,0.1399453,92292.0,92291.0,0.14189802]
[1765383211186,0.12911,92292.0,92291.0,0.14189802]
[1765383211380,0.12911,92292.0,92291.0,0.50269802]
[1765383211880,0.010835,92295.0,92294.0,0.1269]
[1765383212078,0.139945,92295.0,92294.0,0.1269]
[1765383213187,0.010834,92304.0,92303.0,0.1269]
[1765383213375,1.0055033,92309.0,92308.0,0.1269]
[1765383213985,0.63387,92309.0,92308.0,0.1269]
[1765383214184,0.50476,92309.0,92308.0,0.1269]
[1765383214385,0.50476,92309.0,92307.0,0.3608]
[1765383214386,0.00016252,92310.0,92309.0,0.1377333]
[1765383214685,0.00016252,92310.0,92309.0,0.16738468]
[1765383215978,0.16940252,92310.0,92309.0,0.001]
[1765383220895,0.1399453,92292.0,92291.0,0.06427252]
[1765383221086,0.1399453,92292.0,92291.0,0.03105796]
[1765383221293,0.1399453,92292.0,92291.0,0.00016252]
[1765383221985,0.1399453,92292.0,92291.0,0.12706252]
[1765383222185,0.1399453,92292.0,92291.0,0.13206252]
[1765383222186,0.0767553,92292.0,92291.0,0.13206252]
[1765383222384,0.1399453,92292.0,92291.0,0.06927252]
[1765383222585,0.1399453,92292.0,92291.0,0.00816252]
[1765383223997,0.1399453,92292.0,92290.0,0.00108355]
[1765383223998,0.12911,92291.0,92290.0,0.00108355]
[1765383225296,0.12911,92291.0,92290.0,0.00608355]
[1765383225791,0.12911,92291.0,92290.0,0.00908355]
[1765383227195,0.11911,92291.0,92290.0,0.00908355]
[1765383227399,0.11911,92291.0,92290.0,0.08402915]
[1765383227597,0.11911,92291.0,92290.0,0.07319355]
[1765383227789,0.11911,92291.0,92290.0,0.13598355]
[1765383228294,0.05592,92291.0,92290.0,0.13598355]
[1765383228500,0.0108355,92293.0,92292.0,0.0108353]
[1765383228687,0.0108355,92293.0,92292.0,0.1377353]
[1765383228887,0.0108352,92294.0,92292.0,0.1377353]
[1765383229093,0.50488,92300.0,92299.0,0.1377345]
[1765383229094,0.63399,92300.0,92299.0,0.1377345]
[1765383229293,0.63399,92300.0,92299.0,0.4985345]
[1765383229594,0.63399,92300.0,92299.0,0.4877]
[1765383230789,0.50488,92300.0,92299.0,0.4877]
[1765383231004,0.5156734,92309.0,92308.0,0.1269]
[1765383231196,0.6447834,92309.0,92308.0,0.1269]
[1765383231998,0.0767534,92309.0,92308.0,0.1269]
[1765383232204,0.0108334,92309.0,92308.0,0.1269]
[1765383232508,0.1399434,92309.0,92308.0,0.1269]
[1765383233603,0.1409434,92309.0,92308.0,0.1269]
[1765383233994,0.1399443,92301.0,92300.0,0.1269]
[1765383234306,0.06592,92305.0,92304.0,0.1269]
[1765383234503,0.06592,92305.0,92304.0,0.1578403]
[1765383235398,0.00016252,92310.0,92309.0,0.1377333]
[1765383235605,0.12927252,92310.0,92309.0,0.1269]
[1765383236303,0.12927252,92310.0,92309.0,0.1377333]
[1765383236601,0.06608252,92310.0,92309.0,0.16867963]
[1765383236798,0.00016252,92310.0,92309.0,0.16867963]
[1765383237297,0.00216252,92310.0,92309.0,0.16867963]
[1765383237501,0.00216252,92310.0,92309.0,0.19764863]
[1765383237691,0.50484,92317.0,92316.0,0.1377325]
[1765383237894,0.50484,92317.0,92316.0,0.55848635]
[1765383238200,0.50484,92317.0,92316.0,0.52947883]
[1765383239295,0.56648,92317.0,92316.0,0.51864633]
[1765383239697,0.62901,92317.0,92316.0,0.51864633]
[1765383241092,0.63001,92317.0,92316.0,0.51864633]
[1765383241492,0.62901,92317.0,92316.0,0.51864633]
[1765383241707,0.63001,92317.0,92316.0,0.51864633]
[1765383241904,0.63001,92317.0,92316.0,0.15784633]
[1765383242209,0.63001,92317.0,92310.0,0.04119999]